[Event "December 19 Late 2023"]
[Site "https://www.chess.com"]
[Date "2023.12.19"]
[Round "2"]
[White "Chemin, Justo Reinaldo"]
[Black "Erdogan, Anil Berk"]
[Result "1-0"]
[Board "80"]
[TimeControl "180+1"]
[WhiteFideId "2101580"]
[BlackFideId "6348173"]
[WhiteElo "1940"]
[BlackElo "2007"]
[WhiteTeam "BRA"]
[BlackTeam "TUR"]
[WhiteClock "0:00:26"]
[BlackClock "0:00:15"]

1. e4 {[%clk 0:03:00]}  c5 {[%clk 0:02:58]} 2. Nf3 {[%clk 0:03:01]}  g6 {[%clk 0:02:59]} 3. Nc3 {[%clk 0:03:00]}  Nc6 {[%clk 0:02:58]} 4. d3 {[%clk 0:02:59]}  Bg7 {[%clk 0:02:58]} 5. g3 {[%clk 0:02:59]}  e6 {[%clk 0:02:59]} 6. Bg2 {[%clk 0:02:57]}  Nge7 {[%clk 0:02:59]} 7. O-O {[%clk 0:02:57]}  O-O {[%clk 0:02:59]} 8. h4 {[%clk 0:02:57]}  d5 {[%clk 0:02:51]} 9. h5 {[%clk 0:02:44]}  Nd4 {[%clk 0:02:40]} 10. Nxd4 {[%clk 0:02:31]}  cxd4 {[%clk 0:02:41]} 11. Ne2 {[%clk 0:02:29]}  dxe4 {[%clk 0:02:41]} 12. dxe4 {[%clk 0:02:23]}  Nc6 {[%clk 0:02:36]} 13. hxg6 {[%clk 0:02:21]}  hxg6 {[%clk 0:02:36]} 14. Nf4 {[%clk 0:02:20]}  b6 {[%clk 0:02:18]} 15. Nd3 {[%clk 0:02:21]}  Bb7 {[%clk 0:02:18]} 16. f4 {[%clk 0:02:19]}  Qe7 {[%clk 0:02:05]} 17. a3 {[%clk 0:02:11]}  Rad8 {[%clk 0:01:52]} 18. Qg4 {[%clk 0:02:07]}  Bc8 {[%clk 0:01:27]} 19. Bd2 {[%clk 0:01:54]}  a5 {[%clk 0:01:23]} 20. Rae1 {[%clk 0:01:52]}  Kh7 {[%clk 0:01:07]} 21. Kf2 {[%clk 0:01:46]}  Kg8 {[%clk 0:01:06]} 22. Rh1 {[%clk 0:01:45]}  e5 {[%clk 0:00:57]} 23. f5 {[%clk 0:01:41]}  Rfe8 {[%clk 0:00:51]} 24. Qh3 {[%clk 0:01:32]}  Qf6 {[%clk 0:00:43]} 25. Qh7+ {[%clk 0:01:29]}  Kf8 {[%clk 0:00:43]} 26. g4 {[%clk 0:01:24]}  gxf5 {[%clk 0:00:42]} 27. g5 {[%clk 0:01:12]}  Qg6 {[%clk 0:00:42]} 28. Qxg6 {[%clk 0:01:10]}  fxg6 {[%clk 0:00:43]} 29. exf5 {[%clk 0:01:10]}  e4 {[%clk 0:00:29]} 30. Bxe4 {[%clk 0:01:04]}  Ne5 {[%clk 0:00:30]} 31. f6 {[%clk 0:01:00]}  Ng4+ {[%clk 0:00:25]} 32. Kg3 {[%clk 0:01:00]}  Nxf6 {[%clk 0:00:23]} 33. gxf6 {[%clk 0:00:59]}  Bxf6 {[%clk 0:00:24]} 34. Bxg6 {[%clk 0:00:57]}  Rxe1 {[%clk 0:00:24]} 35. Rxe1 {[%clk 0:00:55]}  Kg7 {[%clk 0:00:23]} 36. Be4 {[%clk 0:00:53]}  Rh8 {[%clk 0:00:24]} 37. Nf4 {[%clk 0:00:52]}  Bh4+ {[%clk 0:00:24]} 38. Kf3 {[%clk 0:00:52]}  Bxe1 {[%clk 0:00:24]} 39. Bxe1 {[%clk 0:00:51]}  Rh2 {[%clk 0:00:22]} 40. Bf2 {[%clk 0:00:50]}  Kf7 {[%clk 0:00:17]} 41. Ne2 {[%clk 0:00:50]}  Bg4+ {[%clk 0:00:15]} 42. Kxg4 {[%clk 0:00:48]}  Rxf2 {[%clk 0:00:15]} 43. Nxd4 {[%clk 0:00:47]}  Ke7 {[%clk 0:00:12]} 44. b4 {[%clk 0:00:45]}  axb4 {[%clk 0:00:12]} 45. axb4 {[%clk 0:00:45]}  Kd6 {[%clk 0:00:13]} 46. Bd3 {[%clk 0:00:39]}  Ke5 {[%clk 0:00:12]} 47. Nc6+ {[%clk 0:00:38]}  Kd5 {[%clk 0:00:11]} 48. Ne7+ {[%clk 0:00:39]}  Kd4 {[%clk 0:00:12]} 49. Nf5+ {[%clk 0:00:38]}  Kc3 {[%clk 0:00:12]} 50. b5 {[%clk 0:00:38]}  Kb4 {[%clk 0:00:09]} 51. Ne7 {[%clk 0:00:38]}  Rf7 {[%clk 0:00:08]} 52. Nd5+ {[%clk 0:00:38]}  Kc5 {[%clk 0:00:09]} 53. Ne3 {[%clk 0:00:37]}  Kd4 {[%clk 0:00:09]} 54. Nf5+ {[%clk 0:00:35]}  Kc3 {[%clk 0:00:10]} 55. Nd6 {[%clk 0:00:34]}  Rd7 {[%clk 0:00:10]} 56. Nc4 {[%clk 0:00:33]}  Rb7 {[%clk 0:00:05]} 57. Kf5 {[%clk 0:00:32]}  Kb4 {[%clk 0:00:05]} 58. Ke4 {[%clk 0:00:32]}  Kc5 {[%clk 0:00:05]} 59. Ne5 {[%clk 0:00:31]}  Re7 {[%clk 0:00:05]} 60. c4 {[%clk 0:00:31]}  Kd6 {[%clk 0:00:06]} 61. Kd4 {[%clk 0:00:28]}  Rxe5 {[%clk 0:00:06]} 62. Be4 {[%clk 0:00:28]}  Rc5 {[%clk 0:00:07]} 63. Bd5 {[%clk 0:00:28]}  Ke7 {[%clk 0:00:07]} 64. Ke5 {[%clk 0:00:28]}  Kd7 {[%clk 0:00:08]} 65. Kd4 {[%clk 0:00:28]}  Kd6 {[%clk 0:00:08]} 66. Ke4 {[%clk 0:00:28]}  Rc7 {[%clk 0:00:09]} 67. Kd4 {[%clk 0:00:28]}  Rh7 {[%clk 0:00:10]} 68. Kc3 {[%clk 0:00:28]}  Rh4 {[%clk 0:00:10]} 69. Kb4 {[%clk 0:00:28]}  Rh1 {[%clk 0:00:10]} 70. Bxh1 {[%clk 0:00:26]}  Kc7 {[%clk 0:00:10]} 71. c5 {[%clk 0:00:27]}  bxc5+ {[%clk 0:00:11]} 72. Kxc5 {[%clk 0:00:27]}  Kb8 {[%clk 0:00:12]} 73. b6 {[%clk 0:00:27]}  Kc8 {[%clk 0:00:12]} 74. b7+ {[%clk 0:00:26]}  Kb8 {[%clk 0:00:12]} 75. Kd6 {[%clk 0:00:26]}  Ka7 {[%clk 0:00:13]} 76. Kc7 {[%clk 0:00:26]}  Ka6 {[%clk 0:00:14]} 77. b8=Q {[%clk 0:00:26]}  Ka5 {[%clk 0:00:15]} 78. Qb3 {[%clk 0:00:26]}  Ka6 {[%clk 0:00:15]} 79. Qb6# {[%clk 0:00:26]} 1-0

[Event "December 19 Late 2023"]
[Site "https://www.chess.com"]
[Date "2023.12.19"]
[Round "2"]
[White "Melamed, Daniel"]
[Black "User234564"]
[Result "0-1"]
[Board "81"]
[TimeControl "180+1"]
[WhiteFideId "3229076"]
[WhiteElo "1908"]
[BlackElo "2650"]
[WhiteTeam "AUS"]
[WhiteClock "0:00:41"]
[BlackClock "0:00:17"]

1. d4 {[%clk 0:03:00]}  Nf6 {[%clk 0:02:59]} 2. Nf3 {[%clk 0:03:01]}  g6 {[%clk 0:02:57]} 3. Nc3 {[%clk 0:03:01]}  d5 {[%clk 0:02:56]} 4. Bf4 {[%clk 0:03:01]}  Bg7 {[%clk 0:02:56]} 5. e3 {[%clk 0:03:02]}  O-O {[%clk 0:02:57]} 6. Be2 {[%clk 0:03:02]}  c5 {[%clk 0:02:57]} 7. Ne5 {[%clk 0:03:03]}  Nc6 {[%clk 0:02:58]} 8. Qd2 {[%clk 0:03:03]}  Qb6 {[%clk 0:02:57]} 9. O-O-O {[%clk 0:03:02]}  cxd4 {[%clk 0:02:52]} 10. exd4 {[%clk 0:03:03]}  Be6 {[%clk 0:02:33]} 11. h4 {[%clk 0:02:57]}  h5 {[%clk 0:02:25]} 12. f3 {[%clk 0:02:55]}  Rac8 {[%clk 0:02:22]} 13. a3 {[%clk 0:02:44]}  Nd7 {[%clk 0:02:04]} 14. Nxc6 {[%clk 0:02:33]}  bxc6 {[%clk 0:02:01]} 15. Bh6 {[%clk 0:02:29]}  Rb8 {[%clk 0:01:58]} 16. b3 {[%clk 0:02:25]}  Bxh6 {[%clk 0:01:31]} 17. Qxh6 {[%clk 0:02:26]}  c5 {[%clk 0:01:32]} 18. Na4 {[%clk 0:02:08]}  Qd6 {[%clk 0:01:28]} 19. dxc5 {[%clk 0:02:00]}  Nxc5 {[%clk 0:01:29]} 20. Nxc5 {[%clk 0:02:01]}  Qxc5 {[%clk 0:01:30]} 21. Kb2 {[%clk 0:02:00]}  Rfc8 {[%clk 0:01:28]} 22. Qd2 {[%clk 0:01:58]}  d4 {[%clk 0:01:27]} 23. Bd3 {[%clk 0:01:52]}  a5 {[%clk 0:01:26]} 24. Rde1 {[%clk 0:01:42]}  Qd5 {[%clk 0:01:19]} 25. Be4 {[%clk 0:01:11]}  Rxb3+ {[%clk 0:01:14]} 26. cxb3 {[%clk 0:01:12]}  Qxb3+ {[%clk 0:01:14]} 27. Ka1 {[%clk 0:01:12]}  Qxa3+ {[%clk 0:01:15]} 28. Kb1 {[%clk 0:01:06]}  Rb8+ {[%clk 0:01:06]} 29. Kc2 {[%clk 0:01:04]}  Qa4+ {[%clk 0:00:30]} 30. Kc1 {[%clk 0:00:57]}  Qa1+ {[%clk 0:00:18]} 31. Kc2 {[%clk 0:00:56]}  Rb2+ {[%clk 0:00:18]} 32. Kd3 {[%clk 0:00:54]}  Qa3+ {[%clk 0:00:18]} 33. Ke2 {[%clk 0:00:54]}  Qe3+ {[%clk 0:00:17]} 34. Kf1 {[%clk 0:00:41]}  Qxd2 {[%clk 0:00:17]} 0-1

[Event "December 19 Late 2023"]
[Site "https://www.chess.com"]
[Date "2023.12.19"]
[Round "2"]
[White "Janaszak, Dawid"]
[Black "Vanek, Tomas"]
[Result "1-0"]
[Board "83"]
[TimeControl "180+1"]
[WhiteFideId "1119206"]
[BlackFideId "313459"]
[WhiteElo "2218"]
[BlackElo "2052"]
[WhiteTeam "POL"]
[BlackTeam "CZE"]
[WhiteClock "0:00:12"]
[BlackClock "0:00:11"]

1. e4 {[%clk 0:03:00]}  c5 {[%clk 0:02:59]} 2. Nc3 {[%clk 0:03:00]}  a6 {[%clk 0:02:52]} 3. g3 {[%clk 0:03:00]}  Nc6 {[%clk 0:02:44]} 4. Bg2 {[%clk 0:02:58]}  b5 {[%clk 0:02:40]} 5. d3 {[%clk 0:02:56]}  b4 {[%clk 0:02:33]} 6. Nd5 {[%clk 0:02:52]}  e6 {[%clk 0:02:32]} 7. Ne3 {[%clk 0:02:53]}  Rb8 {[%clk 0:02:25]} 8. f4 {[%clk 0:02:53]}  g6 {[%clk 0:02:19]} 9. Nh3 {[%clk 0:02:51]}  Bg7 {[%clk 0:02:19]} 10. O-O {[%clk 0:02:51]}  Nge7 {[%clk 0:02:18]} 11. f5 {[%clk 0:02:51]}  gxf5 {[%clk 0:02:07]} 12. exf5 {[%clk 0:02:50]}  Bd4 {[%clk 0:02:07]} 13. fxe6 {[%clk 0:02:42]}  dxe6 {[%clk 0:02:03]} 14. Kh1 {[%clk 0:02:33]}  Ne5 {[%clk 0:01:56]} 15. Ng5 {[%clk 0:02:19]}  Bb7 {[%clk 0:01:55]} 16. Ne4 {[%clk 0:02:18]}  Bxe4 {[%clk 0:01:53]} 17. Bxe4 {[%clk 0:02:15]}  f5 {[%clk 0:01:52]} 18. Bg2 {[%clk 0:02:11]}  h5 {[%clk 0:01:48]} 19. Qe1 {[%clk 0:01:32]}  h4 {[%clk 0:01:45]} 20. c3 {[%clk 0:01:32]}  Nxd3 {[%clk 0:01:26]} 21. Qe2 {[%clk 0:01:27]}  Nxc1 {[%clk 0:01:21]} 22. Raxc1 {[%clk 0:01:25]}  Bxe3 {[%clk 0:01:21]} 23. Qxe3 {[%clk 0:01:25]}  Rb6 {[%clk 0:01:18]} 24. cxb4 {[%clk 0:01:21]}  hxg3 {[%clk 0:01:14]} 25. Qxg3 {[%clk 0:01:01]}  Rxb4 {[%clk 0:01:13]} 26. Rxc5 {[%clk 0:00:56]}  Rbh4 {[%clk 0:01:09]} 27. h3 {[%clk 0:00:55]}  Qd4 {[%clk 0:01:04]} 28. Rfc1 {[%clk 0:00:50]}  f4 {[%clk 0:00:58]} 29. Qb3 {[%clk 0:00:40]}  Qe3 {[%clk 0:00:52]} 30. Qxe3 {[%clk 0:00:25]}  fxe3 {[%clk 0:00:52]} 31. Re1 {[%clk 0:00:26]}  Nf5 {[%clk 0:00:50]} 32. Rc7 {[%clk 0:00:22]}  Rb4 {[%clk 0:00:45]} 33. Rc8+ {[%clk 0:00:20]}  Kf7 {[%clk 0:00:45]} 34. Rxh8 {[%clk 0:00:21]}  Rxb2 {[%clk 0:00:43]} 35. a4 {[%clk 0:00:21]}  Ra2 {[%clk 0:00:29]} 36. Bc6 {[%clk 0:00:19]}  Ng3+ {[%clk 0:00:28]} 37. Kg1 {[%clk 0:00:20]}  Ne2+ {[%clk 0:00:28]} 38. Kf1 {[%clk 0:00:17]}  Ng3+ {[%clk 0:00:27]} 39. Kg1 {[%clk 0:00:17]}  Ne2+ {[%clk 0:00:26]} 40. Rxe2 {[%clk 0:00:17]}  Rxe2 {[%clk 0:00:25]} 41. Bf3 {[%clk 0:00:16]}  Rf2 {[%clk 0:00:24]} 42. Bh5+ {[%clk 0:00:15]}  Kg7 {[%clk 0:00:23]} 43. Re8 {[%clk 0:00:15]}  Rf6 {[%clk 0:00:21]} 44. Bg4 {[%clk 0:00:14]}  Kf7 {[%clk 0:00:18]} 45. Bh5+ {[%clk 0:00:14]}  Kg7 {[%clk 0:00:18]} 46. Bg4 {[%clk 0:00:13]}  Kf7 {[%clk 0:00:18]} 47. Rd8 {[%clk 0:00:13]}  Rf4 {[%clk 0:00:18]} 48. Rd3 {[%clk 0:00:12]}  Re4 {[%clk 0:00:17]} 49. Kf1 {[%clk 0:00:12]}  Kf6 {[%clk 0:00:17]} 50. a5 {[%clk 0:00:11]}  Kg5 {[%clk 0:00:17]} 51. Ke2 {[%clk 0:00:11]}  Re5 {[%clk 0:00:17]} 52. Rxe3 {[%clk 0:00:11]}  Rxa5 {[%clk 0:00:17]} 53. Rxe6 {[%clk 0:00:11]}  Ra2+ {[%clk 0:00:17]} 54. Kf3 {[%clk 0:00:10]}  Ra3+ {[%clk 0:00:17]} 55. Kf2 {[%clk 0:00:09]}  Kf4 {[%clk 0:00:16]} 56. Rf6+ {[%clk 0:00:09]}  Kg5 {[%clk 0:00:16]} 57. Rf5+ {[%clk 0:00:10]}  Kg6 {[%clk 0:00:17]} 58. Rc5 {[%clk 0:00:10]}  Ra2+ {[%clk 0:00:15]} 59. Kf3 {[%clk 0:00:10]}  Ra3+ {[%clk 0:00:15]} 60. Kg2 {[%clk 0:00:10]}  Ra2+ {[%clk 0:00:14]} 61. Kg3 {[%clk 0:00:11]}  Ra3+ {[%clk 0:00:14]} 62. Bf3 {[%clk 0:00:11]}  a5 {[%clk 0:00:13]} 63. h4 {[%clk 0:00:12]}  Kh6 {[%clk 0:00:13]} 64. h5 {[%clk 0:00:12]}  Ra2 {[%clk 0:00:12]} 65. Rc6+ {[%clk 0:00:12]}  Kg7 {[%clk 0:00:12]} 66. h6+ {[%clk 0:00:12]}  Kh7 {[%clk 0:00:11]} 67. Be4+ {[%clk 0:00:12]}  Kh8 {[%clk 0:00:11]} 68. Rc8# {[%clk 0:00:12]} 1-0

[Event "December 19 Late 2023"]
[Site "https://www.chess.com"]
[Date "2023.12.19"]
[Round "2"]
[White "Chor, Kevin"]
[Black "Michalski, Olaf"]
[Result "1-0"]
[Board "84"]
[TimeControl "180+1"]
[WhiteFideId "2090740"]
[BlackFideId "1106740"]
[WhiteElo "2640"]
[BlackElo "2105"]
[WhiteTeam "USA"]
[BlackTeam "POL"]
[WhiteClock "0:00:20"]
[BlackClock "0:00:00"]

1. d4 {[%clk 0:03:00]}  d6 {[%clk 0:02:59]} 2. e4 {[%clk 0:02:59]}  Nc6 {[%clk 0:02:57]} 3. Nc3 {[%clk 0:02:52]}  Nf6 {[%clk 0:02:56]} 4. f4 {[%clk 0:02:50]}  Bg4 {[%clk 0:02:52]} 5. Qd3 {[%clk 0:02:29]}  e5 {[%clk 0:02:24]} 6. d5 {[%clk 0:02:24]}  Nd4 {[%clk 0:02:09]} 7. f5 {[%clk 0:02:09]}  Nd7 {[%clk 0:01:52]} 8. Be3 {[%clk 0:01:51]}  Qh4+ {[%clk 0:00:49]} 9. Bf2 {[%clk 0:01:42]}  Qh6 {[%clk 0:00:43]} 10. h3 {[%clk 0:01:20]}  Be7 {[%clk 0:00:29]} 11. Nge2 {[%clk 0:00:43]}  Nc5 {[%clk 0:00:26]} 12. Qd1 {[%clk 0:00:36]}  Bxe2 {[%clk 0:00:20]} 13. Bxe2 {[%clk 0:00:31]}  Bh4 {[%clk 0:00:11]} 14. O-O {[%clk 0:00:29]}  Bxf2+ {[%clk 0:00:09]} 15. Rxf2 {[%clk 0:00:30]}  Qe3 {[%clk 0:00:08]} 16. Bf3 {[%clk 0:00:22]}  Nxf3+ {[%clk 0:00:07]} 17. Qxf3 {[%clk 0:00:22]}  Qxf3 {[%clk 0:00:01]} 18. Rxf3 {[%clk 0:00:23]}  a5 {[%clk 0:00:01]} 19. Nb5 {[%clk 0:00:23]}  Kd7 {[%clk 0:00:00]} 20. Re1 {[%clk 0:00:20]} 1-0

[Event "December 19 Late 2023"]
[Site "https://www.chess.com"]
[Date "2023.12.19"]
[Round "2"]
[White "Saveliev, Alexei"]
[Black "Veloso, Henrique Barbosa"]
[Result "1-0"]
[Board "86"]
[TimeControl "180+1"]
[WhiteFideId "24128546"]
[BlackFideId "22784853"]
[WhiteElo "2257"]
[BlackElo "1881"]
[WhiteTeam "RUS"]
[BlackTeam "BRA"]
[WhiteClock "0:00:33"]
[BlackClock "0:00:00"]

1. c4 {[%clk 0:03:00]}  c5 {[%clk 0:02:49]} 2. Nc3 {[%clk 0:02:59]}  Nc6 {[%clk 0:02:48]} 3. e3 {[%clk 0:02:56]}  Nf6 {[%clk 0:02:45]} 4. d4 {[%clk 0:02:56]}  cxd4 {[%clk 0:02:45]} 5. exd4 {[%clk 0:02:57]}  d5 {[%clk 0:02:45]} 6. cxd5 {[%clk 0:02:58]}  Nxd5 {[%clk 0:02:45]} 7. Nf3 {[%clk 0:02:59]}  Bg4 {[%clk 0:02:39]} 8. Be2 {[%clk 0:02:59]}  e6 {[%clk 0:02:39]} 9. h3 {[%clk 0:02:58]}  Bxf3 {[%clk 0:02:37]} 10. Bxf3 {[%clk 0:02:59]}  Bb4 {[%clk 0:02:35]} 11. Bd2 {[%clk 0:02:56]}  Bxc3 {[%clk 0:02:33]} 12. bxc3 {[%clk 0:02:57]}  O-O {[%clk 0:02:32]} 13. O-O {[%clk 0:02:57]}  Rc8 {[%clk 0:02:31]} 14. Qe2 {[%clk 0:02:57]}  a6 {[%clk 0:02:28]} 15. Rfd1 {[%clk 0:02:33]}  Na5 {[%clk 0:02:23]} 16. Rab1 {[%clk 0:02:31]}  b5 {[%clk 0:02:17]} 17. Qd3 {[%clk 0:02:28]}  Nc4 {[%clk 0:02:13]} 18. Be1 {[%clk 0:02:20]}  Qa5 {[%clk 0:02:02]} 19. Qe2 {[%clk 0:02:05]}  Rfd8 {[%clk 0:01:53]} 20. Rb3 {[%clk 0:01:57]}  Rc7 {[%clk 0:01:27]} 21. Be4 {[%clk 0:01:50]}  Nd6 {[%clk 0:01:15]} 22. Bb1 {[%clk 0:01:39]}  Rc4 {[%clk 0:01:09]} 23. Qe5 {[%clk 0:01:23]}  Qc7 {[%clk 0:00:50]} 24. Rd3 {[%clk 0:01:20]}  Nb7 {[%clk 0:00:42]} 25. Qh5 {[%clk 0:01:13]}  Nf6 {[%clk 0:00:39]} 26. Qh4 {[%clk 0:01:07]}  Nc5 {[%clk 0:00:21]} 27. Rg3 {[%clk 0:01:05]}  Nxb3 {[%clk 0:00:20]} 28. Qxf6 {[%clk 0:01:04]}  g6 {[%clk 0:00:17]} 29. axb3 {[%clk 0:01:01]}  Rc6 {[%clk 0:00:17]} 30. Qg5 {[%clk 0:00:49]}  Rd5 {[%clk 0:00:14]} 31. Qe3 {[%clk 0:00:40]}  Qd7 {[%clk 0:00:08]} 32. Be4 {[%clk 0:00:40]}  Rdd6 {[%clk 0:00:05]} 33. Bxc6 {[%clk 0:00:40]}  Qxc6 {[%clk 0:00:06]} 34. b4 {[%clk 0:00:39]}  Rd7 {[%clk 0:00:05]} 35. Bd2 {[%clk 0:00:39]}  Rc7 {[%clk 0:00:05]} 36. Qe5 {[%clk 0:00:38]}  Rc8 {[%clk 0:00:05]} 37. Bh6 {[%clk 0:00:37]}  f6 {[%clk 0:00:01]} 38. Qxf6 {[%clk 0:00:37]}  Qd7 {[%clk 0:00:00]} 39. Rf3 {[%clk 0:00:33]} 1-0

[Event "December 19 Late 2023"]
[Site "https://www.chess.com"]
[Date "2023.12.19"]
[Round "2"]
[White "Sadovsky, Artem"]
[Black "Bortnyk, Olexandr"]
[Result "0-1"]
[Board "89"]
[TimeControl "180+1"]
[WhiteFideId "4155840"]
[BlackFideId "14120828"]
[WhiteElo "2314"]
[BlackElo "2731"]
[WhiteTeam "FID"]
[BlackTeam "UKR"]
[WhiteClock "0:00:05"]
[BlackClock "0:01:51"]

1. Nf3 {[%clk 0:03:00]}  Nf6 {[%clk 0:03:00]} 2. e3 {[%clk 0:02:59]}  b6 {[%clk 0:03:01]} 3. b3 {[%clk 0:02:59]}  Bb7 {[%clk 0:03:01]} 4. Bb2 {[%clk 0:02:59]}  e6 {[%clk 0:03:02]} 5. Be2 {[%clk 0:02:59]}  d5 {[%clk 0:03:02]} 6. O-O {[%clk 0:03:00]}  Bd6 {[%clk 0:03:03]} 7. c4 {[%clk 0:03:00]}  Nbd7 {[%clk 0:03:03]} 8. d4 {[%clk 0:02:59]}  Ne4 {[%clk 0:02:54]} 9. Nc3 {[%clk 0:02:43]}  O-O {[%clk 0:02:52]} 10. Nxe4 {[%clk 0:02:32]}  dxe4 {[%clk 0:02:53]} 11. Ne5 {[%clk 0:02:28]}  Nxe5 {[%clk 0:02:43]} 12. dxe5 {[%clk 0:02:28]}  Bc5 {[%clk 0:02:41]} 13. Qxd8 {[%clk 0:02:22]}  Rfxd8 {[%clk 0:02:42]} 14. Rfd1 {[%clk 0:02:20]}  a5 {[%clk 0:02:42]} 15. Rxd8+ {[%clk 0:02:19]}  Rxd8 {[%clk 0:02:41]} 16. Rd1 {[%clk 0:02:20]}  Rxd1+ {[%clk 0:02:40]} 17. Bxd1 {[%clk 0:02:21]}  Kf8 {[%clk 0:02:39]} 18. Bc2 {[%clk 0:02:09]}  Ke7 {[%clk 0:02:38]} 19. Kf1 {[%clk 0:02:10]}  f5 {[%clk 0:02:35]} 20. exf6+ {[%clk 0:02:08]}  gxf6 {[%clk 0:02:36]} 21. Ke2 {[%clk 0:02:08]}  Bd6 {[%clk 0:02:36]} 22. h3 {[%clk 0:02:05]}  h5 {[%clk 0:02:31]} 23. f3 {[%clk 0:01:58]}  f5 {[%clk 0:02:25]} 24. f4 {[%clk 0:01:56]}  Kf7 {[%clk 0:02:19]} 25. Kf2 {[%clk 0:01:56]}  Ba6 {[%clk 0:02:15]} 26. Bd1 {[%clk 0:01:50]}  Kg6 {[%clk 0:02:16]} 27. g4 {[%clk 0:01:38]}  h4 {[%clk 0:02:15]} 28. g5 {[%clk 0:01:36]}  e5 {[%clk 0:02:11]} 29. Bxe5 {[%clk 0:01:29]}  Bxe5 {[%clk 0:02:10]} 30. fxe5 {[%clk 0:01:30]}  Kxg5 {[%clk 0:02:11]} 31. Be2 {[%clk 0:01:11]}  Bc8 {[%clk 0:02:11]} 32. c5 {[%clk 0:01:07]}  bxc5 {[%clk 0:01:55]} 33. Bc4 {[%clk 0:00:46]}  Bd7 {[%clk 0:01:53]} 34. Bf7 {[%clk 0:00:44]}  Bb5 {[%clk 0:01:50]} 35. a4 {[%clk 0:00:32]}  Bd3 {[%clk 0:01:50]} 36. Bc4 {[%clk 0:00:24]}  Bxc4 {[%clk 0:01:47]} 37. bxc4 {[%clk 0:00:25]}  Kg6 {[%clk 0:01:48]} 38. Kg2 {[%clk 0:00:23]}  Kf7 {[%clk 0:01:49]} 39. Kf2 {[%clk 0:00:24]}  Ke6 {[%clk 0:01:50]} 40. Kg2 {[%clk 0:00:24]}  Kxe5 {[%clk 0:01:51]} 41. Kf2 {[%clk 0:00:25]}  f4 {[%clk 0:01:51]} 42. Ke2 {[%clk 0:00:25]}  fxe3 {[%clk 0:01:51]} 43. Kxe3 {[%clk 0:00:05]}  c6 {[%clk 0:01:51]} 0-1

[Event "December 19 Late 2023"]
[Site "https://www.chess.com"]
[Date "2023.12.19"]
[Round "2"]
[White "Bregu, Riza"]
[Black "Lukovic, Vladimir"]
[Result "0-1"]
[Board "94"]
[TimeControl "180+1"]
[WhiteFideId "4701739"]
[BlackFideId "942952"]
[WhiteElo "2138"]
[BlackElo "2394"]
[WhiteTeam "ALB"]
[BlackTeam "SRB"]
[WhiteClock "0:00:51"]
[BlackClock "0:00:53"]

1. e4 {[%clk 0:03:00]}  e6 {[%clk 0:02:55]} 2. d4 {[%clk 0:03:00]}  d5 {[%clk 0:02:44]} 3. e5 {[%clk 0:03:01]}  c5 {[%clk 0:02:44]} 4. Qg4 {[%clk 0:03:01]}  cxd4 {[%clk 0:02:43]} 5. Nf3 {[%clk 0:03:01]}  Nc6 {[%clk 0:02:42]} 6. Bd3 {[%clk 0:03:02]}  h5 {[%clk 0:02:40]} 7. Qg3 {[%clk 0:03:02]}  h4 {[%clk 0:02:39]} 8. Qg4 {[%clk 0:03:02]}  Nh6 {[%clk 0:02:37]} 9. Bxh6 {[%clk 0:03:00]}  Rxh6 {[%clk 0:02:36]} 10. O-O {[%clk 0:03:01]}  Bd7 {[%clk 0:02:28]} 11. Re1 {[%clk 0:03:01]}  Qb6 {[%clk 0:02:23]} 12. Nbd2 {[%clk 0:03:00]}  O-O-O {[%clk 0:02:22]} 13. c3 {[%clk 0:03:00]}  dxc3 {[%clk 0:02:16]} 14. bxc3 {[%clk 0:03:00]}  Bc5 {[%clk 0:02:16]} 15. Reb1 {[%clk 0:02:38]}  Bxf2+ {[%clk 0:02:03]} 16. Kf1 {[%clk 0:02:38]}  Qe3 {[%clk 0:02:03]} 17. Bb5 {[%clk 0:02:38]}  h3 {[%clk 0:01:57]} 18. Rb3 {[%clk 0:02:22]}  hxg2+ {[%clk 0:01:49]} 19. Kxg2 {[%clk 0:02:22]}  Rg6 {[%clk 0:01:47]} 20. Qxg6 {[%clk 0:02:10]}  fxg6 {[%clk 0:01:48]} 21. Nf1 {[%clk 0:02:11]}  Qc5 {[%clk 0:01:36]} 22. Be2 {[%clk 0:02:04]}  a6 {[%clk 0:01:29]} 23. Rab1 {[%clk 0:02:01]}  Na5 {[%clk 0:01:28]} 24. Rb4 {[%clk 0:01:45]}  Rf8 {[%clk 0:01:25]} 25. N1d2 {[%clk 0:01:35]}  Be3 {[%clk 0:01:17]} 26. Nb3 {[%clk 0:01:34]}  Nxb3 {[%clk 0:01:17]} 27. R1xb3 {[%clk 0:01:34]}  Bc6 {[%clk 0:01:16]} 28. Rg4 {[%clk 0:01:15]}  g5 {[%clk 0:01:11]} 29. Rgb4 {[%clk 0:01:09]}  Rf4 {[%clk 0:01:00]} 30. Nxg5 {[%clk 0:00:58]}  Rf2+ {[%clk 0:00:54]} 31. Kg3 {[%clk 0:00:55]}  Bxg5 {[%clk 0:00:54]} 32. Rd4 {[%clk 0:00:51]}  Rxe2 {[%clk 0:00:53]} 0-1

[Event "December 19 Late 2023"]
[Site "https://www.chess.com"]
[Date "2023.12.19"]
[Round "2"]
[White "Martin Fuentes, Alberto"]
[Black "Mazzilli, Piero"]
[Result "0-1"]
[Board "96"]
[TimeControl "180+1"]
[WhiteFideId "2292289"]
[BlackFideId "807087"]
[WhiteElo "2280"]
[BlackElo "2299"]
[WhiteTeam "ESP"]
[BlackTeam "ITA"]
[WhiteClock "0:00:57"]
[BlackClock "0:00:51"]

1. e4 {[%clk 0:02:45]}  c5 {[%clk 0:02:58]} 2. Nc3 {[%clk 0:02:45]}  a6 {[%clk 0:02:58]} 3. g3 {[%clk 0:02:46]}  b5 {[%clk 0:02:58]} 4. Bg2 {[%clk 0:02:47]}  Bb7 {[%clk 0:02:58]} 5. d3 {[%clk 0:02:47]}  b4 {[%clk 0:02:59]} 6. Nce2 {[%clk 0:02:46]}  d5 {[%clk 0:02:57]} 7. Nh3 {[%clk 0:02:46]}  dxe4 {[%clk 0:02:56]} 8. Ng5 {[%clk 0:02:47]}  Nf6 {[%clk 0:02:53]} 9. O-O {[%clk 0:02:46]}  Nbd7 {[%clk 0:02:38]} 10. Nxe4 {[%clk 0:02:45]}  Nxe4 {[%clk 0:02:37]} 11. dxe4 {[%clk 0:02:46]}  Nf6 {[%clk 0:02:25]} 12. Be3 {[%clk 0:02:43]}  e6 {[%clk 0:02:19]} 13. f3 {[%clk 0:02:36]}  Be7 {[%clk 0:02:08]} 14. Qxd8+ {[%clk 0:02:26]}  Rxd8 {[%clk 0:02:07]} 15. a3 {[%clk 0:02:27]}  O-O {[%clk 0:01:48]} 16. Rfd1 {[%clk 0:02:26]}  Rxd1+ {[%clk 0:01:19]} 17. Rxd1 {[%clk 0:02:27]}  a5 {[%clk 0:01:19]} 18. Nc1 {[%clk 0:01:09]}  c4 {[%clk 0:01:15]} 19. axb4 {[%clk 0:01:05]}  axb4 {[%clk 0:01:16]} 20. Rd4 {[%clk 0:01:04]}  Bc5 {[%clk 0:01:09]} 21. Kf2 {[%clk 0:01:05]}  Bxd4 {[%clk 0:01:09]} 22. Bxd4 {[%clk 0:01:06]}  Rd8 {[%clk 0:01:01]} 23. Ke3 {[%clk 0:01:06]}  Nd7 {[%clk 0:00:56]} 24. Bf1 {[%clk 0:01:04]}  e5 {[%clk 0:00:52]} 25. Ba7 {[%clk 0:00:57]}  Ra8 {[%clk 0:00:51]} 0-1